[Event "Titled Tuesday Blitz March 01 Early 2022"]
[White "Vokhidov, Shamsiddin"]
[Black "Fier, Alexandr"]
[WhiteFideId "14204223"]
[BlackFideId "2107139"]
[WhiteElo "2611"]
[BlackElo "2569"]
[Result "0-1"]
[Round "10"]
[TimeControl "180+1"]
[Date "2022.03.01"]
[WhiteClock "0:00:13"]
[BlackClock "0:00:10"]

1. e4 {[%clk 0:03:00]}  Nf6 {[%clk 0:03:00]} 2. e5 {[%clk 0:03:01]}  Nd5 {[%clk 0:03:01]} 3. d4 {[%clk 0:03:02]}  d6 {[%clk 0:03:02]} 4. Nf3 {[%clk 0:03:03]}  g6 {[%clk 0:03:02]} 5. Bc4 {[%clk 0:03:03]}  Nb6 {[%clk 0:03:03]} 6. Bb3 {[%clk 0:03:04]}  Bg7 {[%clk 0:03:03]} 7. Qe2 {[%clk 0:03:03]}  O-O {[%clk 0:03:02]} 8. h3 {[%clk 0:03:04]}  Nc6 {[%clk 0:03:01]} 9. O-O {[%clk 0:03:04]}  Na5 {[%clk 0:03:01]} 10. Nc3 {[%clk 0:03:03]}  Nxb3 {[%clk 0:03:02]} 11. axb3 {[%clk 0:03:04]}  a5 {[%clk 0:03:03]} 12. Bg5 {[%clk 0:03:00]}  f6 {[%clk 0:03:02]} 13. Bh4 {[%clk 0:02:59]}  d5 {[%clk 0:02:52]} 14. e6 {[%clk 0:02:56]}  Ra6 {[%clk 0:02:39]} 15. Rfe1 {[%clk 0:02:37]}  Na8 {[%clk 0:02:38]} 16. Qb5 {[%clk 0:02:33]}  c6 {[%clk 0:02:34]} 17. Qd3 {[%clk 0:02:11]}  Nc7 {[%clk 0:02:34]} 18. Re3 {[%clk 0:02:06]}  Nxe6 {[%clk 0:02:33]} 19. Rae1 {[%clk 0:02:06]}  Nf4 {[%clk 0:02:33]} 20. Qd2 {[%clk 0:02:06]}  Rf7 {[%clk 0:02:29]} 21. Nh2 {[%clk 0:01:50]}  g5 {[%clk 0:02:28]} 22. Bg3 {[%clk 0:01:50]}  Ng6 {[%clk 0:02:28]} 23. R3e2 {[%clk 0:01:40]}  b5 {[%clk 0:02:10]} 24. Nf1 {[%clk 0:01:36]}  Ra8 {[%clk 0:01:54]} 25. f4 {[%clk 0:01:26]}  gxf4 {[%clk 0:01:48]} 26. Bxf4 {[%clk 0:01:27]}  e5 {[%clk 0:01:47]} 27. Bh6 {[%clk 0:01:27]}  Qb6 {[%clk 0:01:40]} 28. Be3 {[%clk 0:01:21]}  e4 {[%clk 0:01:40]} 29. Ng3 {[%clk 0:01:20]}  f5 {[%clk 0:01:39]} 30. Nh5 {[%clk 0:01:20]}  Qc7 {[%clk 0:01:35]} 31. Rf2 {[%clk 0:01:17]}  Be6 {[%clk 0:01:27]} 32. Ne2 {[%clk 0:01:16]}  Raf8 {[%clk 0:01:27]} 33. Ref1 {[%clk 0:01:16]}  b4 {[%clk 0:01:21]} 34. Nxg7 {[%clk 0:01:16]}  Rxg7 {[%clk 0:01:21]} 35. Bh6 {[%clk 0:01:16]}  Rf6 {[%clk 0:00:51]} 36. Bxg7 {[%clk 0:01:10]}  Qxg7 {[%clk 0:00:51]} 37. Ng3 {[%clk 0:01:08]}  Qd7 {[%clk 0:00:36]} 38. Qg5 {[%clk 0:01:06]}  Rf7 {[%clk 0:00:20]} 39. Nxf5 {[%clk 0:01:05]}  Bxf5 {[%clk 0:00:16]} 40. Rxf5 {[%clk 0:01:06]}  Rg7 {[%clk 0:00:17]} 41. Qf6 {[%clk 0:01:02]}  h6 {[%clk 0:00:16]} 42. Rh5 {[%clk 0:00:57]}  e3 {[%clk 0:00:14]} 43. Rxh6 {[%clk 0:00:50]}  e2 {[%clk 0:00:14]} 44. Re1 {[%clk 0:00:48]}  Qe8 {[%clk 0:00:15]} 45. Qf5 {[%clk 0:00:37]}  Qe3+ {[%clk 0:00:14]} 46. Kh1 {[%clk 0:00:31]}  Qxh6 {[%clk 0:00:15]} 47. Rxe2 {[%clk 0:00:30]}  Rf7 {[%clk 0:00:11]} 48. Qe6 {[%clk 0:00:24]}  Kg7 {[%clk 0:00:12]} 49. Re1 {[%clk 0:00:22]}  Nf4 {[%clk 0:00:11]} 50. Qe5+ {[%clk 0:00:22]}  Qf6 {[%clk 0:00:11]} 51. Qe8 {[%clk 0:00:20]}  Ng6 {[%clk 0:00:11]} 52. Qe3 {[%clk 0:00:17]}  Qf2 {[%clk 0:00:11]} 53. Qe6 {[%clk 0:00:15]}  Qxc2 {[%clk 0:00:11]} 54. Qg4 {[%clk 0:00:15]}  Qf5 {[%clk 0:00:11]} 55. Qg3 {[%clk 0:00:15]}  Qf2 {[%clk 0:00:11]} 56. Qxf2 {[%clk 0:00:12]}  Rxf2 {[%clk 0:00:11]} 57. Re6 {[%clk 0:00:13]}  Rxb2 {[%clk 0:00:10]} 0-1


[Site "https://www.chess.com"]

[Event "Titled Tuesday Blitz March 01 Early 2022"]
[White "Volkov, Maksim"]
[Black "Mikhalsky, Vladimir"]
[WhiteFideId "54123070"]
[BlackFideId "14144352"]
[WhiteElo "2081"]
[BlackElo "2248"]
[Result "1-0"]
[Round "10"]
[TimeControl "180+1"]
[Date "2022.03.01"]
[WhiteClock "0:01:24"]
[BlackClock "0:01:11"]

1. d4 {[%clk 0:03:00]}  Nf6 {[%clk 0:02:55]} 2. c4 {[%clk 0:03:00]}  g6 {[%clk 0:02:54]} 3. g3 {[%clk 0:03:00]}  Bg7 {[%clk 0:02:54]} 4. Nc3 {[%clk 0:03:00]}  O-O {[%clk 0:02:54]} 5. Bg2 {[%clk 0:03:01]}  d6 {[%clk 0:02:54]} 6. Nf3 {[%clk 0:03:01]}  c5 {[%clk 0:02:52]} 7. O-O {[%clk 0:03:00]}  Nc6 {[%clk 0:02:52]} 8. dxc5 {[%clk 0:03:00]}  dxc5 {[%clk 0:02:51]} 9. Bf4 {[%clk 0:03:00]}  Be6 {[%clk 0:02:44]} 10. Qa4 {[%clk 0:02:53]}  Qa5 {[%clk 0:02:36]} 11. Rac1 {[%clk 0:02:40]}  Rac8 {[%clk 0:02:31]} 12. Rfd1 {[%clk 0:02:36]}  Rfd8 {[%clk 0:02:27]} 13. b3 {[%clk 0:02:23]}  Nh5 {[%clk 0:02:21]} 14. Qxa5 {[%clk 0:02:16]}  Nxa5 {[%clk 0:02:17]} 15. Rxd8+ {[%clk 0:02:15]}  Rxd8 {[%clk 0:02:11]} 16. Bc7 {[%clk 0:02:15]}  Nc6 {[%clk 0:02:05]} 17. Bxd8 {[%clk 0:02:14]}  Nxd8 {[%clk 0:02:05]} 18. Ng5 {[%clk 0:02:11]}  b6 {[%clk 0:01:53]} 19. Nb5 {[%clk 0:02:08]}  a6 {[%clk 0:01:47]} 20. Nc7 {[%clk 0:02:07]}  Bc8 {[%clk 0:01:46]} 21. Rd1 {[%clk 0:02:05]}  Nb7 {[%clk 0:01:45]} 22. Nxa6 {[%clk 0:02:00]}  Nd6 {[%clk 0:01:44]} 23. Nc7 {[%clk 0:01:57]}  h6 {[%clk 0:01:44]} 24. Ne4 {[%clk 0:01:55]}  Be5 {[%clk 0:01:40]} 25. Nd5 {[%clk 0:01:50]}  Kf8 {[%clk 0:01:35]} 26. Nxb6 {[%clk 0:01:44]}  Bf5 {[%clk 0:01:35]} 27. Nxc5 {[%clk 0:01:43]}  Nf6 {[%clk 0:01:26]} 28. g4 {[%clk 0:01:25]}  Bxg4 {[%clk 0:01:24]} 29. f3 {[%clk 0:01:25]}  Bh5 {[%clk 0:01:13]} 30. Ncd7+ {[%clk 0:01:24]}  Nxd7 {[%clk 0:01:12]} 31. Nxd7+ {[%clk 0:01:23]}  Kg7 {[%clk 0:01:11]} 32. Nxe5 {[%clk 0:01:24]} 1-0


[Site "https://www.chess.com"]

[Event "Titled Tuesday Blitz March 01 Early 2022"]
[White "Yushko, Olga"]
[Black "Tashkov, Rumen"]
[WhiteFideId "14114500"]
[BlackFideId "2904004"]
[WhiteElo "2028"]
[BlackElo "2181"]
[Result "0-1"]
[Round "10"]
[TimeControl "180+1"]
[Date "2022.03.01"]
[WhiteClock "0:01:56"]
[BlackClock "0:01:55"]

1. d4 {[%clk 0:02:59]}  d6 {[%clk 0:02:59]} 2. c4 {[%clk 0:03:00]}  e5 {[%clk 0:02:59]} 3. e3 {[%clk 0:03:01]}  Nd7 {[%clk 0:02:57]} 4. Nf3 {[%clk 0:03:01]}  Ngf6 {[%clk 0:02:57]} 5. Be2 {[%clk 0:03:01]}  g6 {[%clk 0:02:57]} 6. O-O {[%clk 0:03:01]}  Bg7 {[%clk 0:02:57]} 7. Nc3 {[%clk 0:03:01]}  O-O {[%clk 0:02:57]} 8. Qc2 {[%clk 0:02:57]}  Re8 {[%clk 0:02:56]} 9. a3 {[%clk 0:02:55]}  Nf8 {[%clk 0:02:46]} 10. b4 {[%clk 0:02:37]}  e4 {[%clk 0:02:44]} 11. Nd2 {[%clk 0:02:35]}  Bf5 {[%clk 0:02:44]} 12. Bb2 {[%clk 0:02:31]}  h5 {[%clk 0:02:44]} 13. d5 {[%clk 0:02:25]}  N8h7 {[%clk 0:02:39]} 14. Nb3 {[%clk 0:02:24]}  Bg4 {[%clk 0:02:36]} 15. Bxg4 {[%clk 0:02:22]}  hxg4 {[%clk 0:02:35]} 16. Nd2 {[%clk 0:02:21]}  Ng5 {[%clk 0:02:34]} 17. c5 {[%clk 0:02:20]}  Qd7 {[%clk 0:02:14]} 18. Rac1 {[%clk 0:02:14]}  Qf5 {[%clk 0:02:07]} 19. Nb3 {[%clk 0:02:06]}  Nf3+ {[%clk 0:02:03]} 20. Kh1 {[%clk 0:02:04]}  Qh5 {[%clk 0:02:02]} 21. gxf3 {[%clk 0:02:02]}  gxf3 {[%clk 0:02:01]} 22. Nd2 {[%clk 0:01:56]}  Ng4 {[%clk 0:01:55]} 0-1


[Site "https://www.chess.com"]

[Event "Titled Tuesday Blitz March 01 Early 2022"]
[White "Zierk, Steven"]
[Black "Nakamura, Hikaru"]
[WhiteFideId "2034255"]
[BlackFideId "2016192"]
[WhiteElo "2494"]
[BlackElo "2850"]
[Result "0-1"]
[Round "10"]
[TimeControl "180+1"]
[Date "2022.03.01"]
[WhiteClock "0:00:10"]
[BlackClock "0:01:19"]

1. e4 {[%clk 0:03:00]}  g6 {[%clk 0:02:58]} 2. d4 {[%clk 0:03:00]}  Bg7 {[%clk 0:02:59]} 3. Nc3 {[%clk 0:03:01]}  a6 {[%clk 0:03:00]} 4. a4 {[%clk 0:03:00]}  b6 {[%clk 0:02:59]} 5. Be3 {[%clk 0:02:59]}  Bb7 {[%clk 0:03:00]} 6. Qd2 {[%clk 0:03:00]}  d6 {[%clk 0:02:59]} 7. f3 {[%clk 0:02:59]}  Nd7 {[%clk 0:03:00]} 8. h4 {[%clk 0:02:59]}  h6 {[%clk 0:02:59]} 9. Nh3 {[%clk 0:02:57]}  e6 {[%clk 0:02:59]} 10. d5 {[%clk 0:02:52]}  Qxh4+ {[%clk 0:02:55]} 11. Bf2 {[%clk 0:02:51]}  Qf6 {[%clk 0:02:46]} 12. dxe6 {[%clk 0:02:51]}  fxe6 {[%clk 0:02:46]} 13. Bc4 {[%clk 0:02:40]}  g5 {[%clk 0:02:44]} 14. f4 {[%clk 0:02:34]}  Ne7 {[%clk 0:02:36]} 15. O-O-O {[%clk 0:02:24]}  O-O-O {[%clk 0:02:29]} 16. fxg5 {[%clk 0:02:21]}  hxg5 {[%clk 0:02:29]} 17. Nxg5 {[%clk 0:02:16]}  d5 {[%clk 0:02:29]} 18. exd5 {[%clk 0:01:47]}  exd5 {[%clk 0:02:19]} 19. Bd3 {[%clk 0:01:41]}  Ne5 {[%clk 0:02:05]} 20. Rhf1 {[%clk 0:01:17]}  Nxd3+ {[%clk 0:02:03]} 21. cxd3 {[%clk 0:01:18]}  Qg6 {[%clk 0:01:59]} 22. Bg3 {[%clk 0:01:04]}  Nf5 {[%clk 0:01:48]} 23. Bf4 {[%clk 0:01:00]}  d4 {[%clk 0:01:25]} 24. Nce4 {[%clk 0:00:56]}  Ne3 {[%clk 0:01:25]} 25. Bxe3 {[%clk 0:00:36]}  dxe3 {[%clk 0:01:26]} 26. Qe2 {[%clk 0:00:31]}  Qc6+ {[%clk 0:01:23]} 27. Kb1 {[%clk 0:00:30]}  Qxa4 {[%clk 0:01:23]} 28. Nf7 {[%clk 0:00:16]}  Bd5 {[%clk 0:01:20]} 29. Nxd8 {[%clk 0:00:10]}  Qa2+ {[%clk 0:01:19]} 0-1


[Site "https://www.chess.com"]

[Event "Titled Tuesday Blitz March 01 Early 2022"]
[White "Agibileg, Uurtsaikh"]
[Black "Savchenko, Boris"]
[WhiteFideId "4901606"]
[BlackFideId "4147332"]
[WhiteElo "2205"]
[BlackElo "2512"]
[Result "1-0"]
[Round "11"]
[TimeControl "180+1"]
[Date "2022.03.01"]
[WhiteClock "0:00:03"]
[BlackClock "0:00:04"]

1. d4 {[%clk 0:03:00]}  d5 {[%clk 0:02:57]} 2. c4 {[%clk 0:03:01]}  e5 {[%clk 0:02:54]} 3. dxe5 {[%clk 0:03:00]}  d4 {[%clk 0:02:55]} 4. Nf3 {[%clk 0:02:58]}  Nc6 {[%clk 0:02:54]} 5. g3 {[%clk 0:02:55]}  Bf5 {[%clk 0:02:53]} 6. Bg2 {[%clk 0:02:54]}  Qd7 {[%clk 0:02:41]} 7. O-O {[%clk 0:02:52]}  O-O-O {[%clk 0:02:41]} 8. a3 {[%clk 0:02:51]}  f6 {[%clk 0:02:40]} 9. Qa4 {[%clk 0:02:18]}  Kb8 {[%clk 0:02:23]} 10. exf6 {[%clk 0:02:01]}  Nxf6 {[%clk 0:02:24]} 11. b4 {[%clk 0:02:01]}  Qe8 {[%clk 0:01:54]} 12. Bf4 {[%clk 0:01:58]}  Nh5 {[%clk 0:01:45]} 13. Bg5 {[%clk 0:01:46]}  Be7 {[%clk 0:01:43]} 14. b5 {[%clk 0:01:35]}  Ne5 {[%clk 0:01:37]} 15. Nxe5 {[%clk 0:01:32]}  Bxg5 {[%clk 0:01:37]} 16. Nc6+ {[%clk 0:01:15]}  bxc6 {[%clk 0:01:26]} 17. bxc6 {[%clk 0:00:41]}  Ka8 {[%clk 0:01:25]} 18. h4 {[%clk 0:00:38]}  Be7 {[%clk 0:01:04]} 19. Qa5 {[%clk 0:00:31]}  Bc5 {[%clk 0:00:26]} 20. Qxc7 {[%clk 0:00:25]}  Rb8 {[%clk 0:00:22]} 21. Nd2 {[%clk 0:00:18]}  Nf6 {[%clk 0:00:18]} 22. Qxg7 {[%clk 0:00:16]}  Ne4 {[%clk 0:00:17]} 23. c7 {[%clk 0:00:15]}  Rc8 {[%clk 0:00:15]} 24. Rab1 {[%clk 0:00:12]}  Bb6 {[%clk 0:00:12]} 25. c5 {[%clk 0:00:11]}  Rxc7 {[%clk 0:00:11]} 26. Nxe4 {[%clk 0:00:08]}  Rxg7 {[%clk 0:00:10]} 27. Nd6+ {[%clk 0:00:09]}  Kb8 {[%clk 0:00:09]} 28. Nxe8 {[%clk 0:00:09]}  Rxe8 {[%clk 0:00:09]} 29. cxb6 {[%clk 0:00:10]}  Bxb1 {[%clk 0:00:09]} 30. Rxb1 {[%clk 0:00:09]}  Rxe2 {[%clk 0:00:09]} 31. bxa7+ {[%clk 0:00:08]}  Kxa7 {[%clk 0:00:09]} 32. Rb4 {[%clk 0:00:08]}  d3 {[%clk 0:00:08]} 33. Rd4 {[%clk 0:00:07]}  d2 {[%clk 0:00:09]} 34. Bf3 {[%clk 0:00:08]}  Re1+ {[%clk 0:00:04]} 35. Kg2 {[%clk 0:00:08]}  Ra1 {[%clk 0:00:04]} 36. Rxd2 {[%clk 0:00:06]}  Rxa3 {[%clk 0:00:04]} 37. h5 {[%clk 0:00:06]}  Kb6 {[%clk 0:00:04]} 38. Rd6+ {[%clk 0:00:04]}  Kc5 {[%clk 0:00:04]} 39. Rd5+ {[%clk 0:00:05]}  Kc4 {[%clk 0:00:05]} 40. Rf5 {[%clk 0:00:05]}  Kd4 {[%clk 0:00:05]} 41. h6 {[%clk 0:00:05]}  Rg6 {[%clk 0:00:05]} 42. Rd5+ {[%clk 0:00:04]}  Kc4 {[%clk 0:00:05]} 43. Rh5 {[%clk 0:00:03]}  Ra7 {[%clk 0:00:02]} 44. Be4 {[%clk 0:00:03]}  Rf6 {[%clk 0:00:02]} 45. f4 {[%clk 0:00:02]}  Kd4 {[%clk 0:00:02]} 46. Bf3 {[%clk 0:00:03]}  Ra2+ {[%clk 0:00:02]} 47. Kh3 {[%clk 0:00:03]}  Ra3 {[%clk 0:00:03]} 48. Kg4 {[%clk 0:00:03]}  Rg6+ {[%clk 0:00:03]} 49. Rg5 {[%clk 0:00:03]}  Rxf3 {[%clk 0:00:04]} 50. Rxg6 {[%clk 0:00:03]} 1-0


[Site "https://www.chess.com"]

[Event "Titled Tuesday Blitz March 01 Early 2022"]
[White "Alavi, Sayed Javad"]
[Black "Santos Flores, Alberto"]
[WhiteFideId "12500607"]
[BlackFideId "3601234"]
[WhiteElo "2475"]
[BlackElo "2293"]
[Result "1-0"]
[Round "11"]
[TimeControl "180+1"]
[Date "2022.03.01"]
[WhiteClock "0:00:32"]
[BlackClock "0:00:28"]

1. Nf3 {[%clk 0:03:00]}  d5 {[%clk 0:02:58]} 2. d4 {[%clk 0:03:00]}  Nf6 {[%clk 0:02:58]} 3. c4 {[%clk 0:03:01]}  c6 {[%clk 0:02:57]} 4. e3 {[%clk 0:02:59]}  Bf5 {[%clk 0:02:56]} 5. Nc3 {[%clk 0:02:59]}  e6 {[%clk 0:02:56]} 6. Nh4 {[%clk 0:02:59]}  Bg4 {[%clk 0:02:55]} 7. Qb3 {[%clk 0:02:58]}  Qb6 {[%clk 0:02:54]} 8. h3 {[%clk 0:02:58]}  Bh5 {[%clk 0:02:54]} 9. g4 {[%clk 0:02:58]}  Bg6 {[%clk 0:02:54]} 10. Nxg6 {[%clk 0:02:58]}  hxg6 {[%clk 0:02:55]} 11. Bg2 {[%clk 0:02:55]}  Nbd7 {[%clk 0:02:55]} 12. Bd2 {[%clk 0:02:54]}  Be7 {[%clk 0:02:53]} 13. g5 {[%clk 0:02:36]}  Nh5 {[%clk 0:02:50]} 14. h4 {[%clk 0:02:36]}  Qxb3 {[%clk 0:02:45]} 15. axb3 {[%clk 0:02:37]}  a6 {[%clk 0:02:45]} 16. Ne2 {[%clk 0:02:20]}  Bd6 {[%clk 0:02:42]} 17. f4 {[%clk 0:02:20]}  O-O {[%clk 0:02:34]} 18. Kf2 {[%clk 0:02:12]}  b5 {[%clk 0:02:22]} 19. c5 {[%clk 0:02:01]}  Bc7 {[%clk 0:02:21]} 20. Ba5 {[%clk 0:02:01]}  Bb8 {[%clk 0:02:17]} 21. Bh3 {[%clk 0:01:57]}  Re8 {[%clk 0:02:09]} 22. Ra2 {[%clk 0:01:49]}  Ba7 {[%clk 0:01:21]} 23. Rha1 {[%clk 0:01:49]}  Rac8 {[%clk 0:01:21]} 24. Nc1 {[%clk 0:01:41]}  Kf8 {[%clk 0:01:13]} 25. Nd3 {[%clk 0:01:39]}  Nb8 {[%clk 0:01:06]} 26. Bd2 {[%clk 0:01:26]}  Rc7 {[%clk 0:01:02]} 27. Nb4 {[%clk 0:01:24]}  f6 {[%clk 0:00:50]} 28. Nxa6 {[%clk 0:01:23]}  Nxa6 {[%clk 0:00:51]} 29. Rxa6 {[%clk 0:01:24]}  Bb8 {[%clk 0:00:52]} 30. Ra8 {[%clk 0:01:12]}  e5 {[%clk 0:00:48]} 31. gxf6 {[%clk 0:00:42]}  gxf6 {[%clk 0:00:47]} 32. f5 {[%clk 0:00:43]}  gxf5 {[%clk 0:00:43]} 33. Bxf5 {[%clk 0:00:44]}  Ng7 {[%clk 0:00:41]} 34. Bg6 {[%clk 0:00:43]}  Rec8 {[%clk 0:00:39]} 35. h5 {[%clk 0:00:42]}  Ne6 {[%clk 0:00:39]} 36. Bf5 {[%clk 0:00:40]}  Ke7 {[%clk 0:00:36]} 37. h6 {[%clk 0:00:40]}  Rh8 {[%clk 0:00:34]} 38. Rg1 {[%clk 0:00:38]}  Rcc8 {[%clk 0:00:31]} 39. h7 {[%clk 0:00:36]}  Rcf8 {[%clk 0:00:29]} 40. Ra6 {[%clk 0:00:33]}  Kd7 {[%clk 0:00:28]} 41. Rg7+ {[%clk 0:00:32]} 1-0


[Site "https://www.chess.com"]

[Event "Titled Tuesday Blitz March 01 Early 2022"]
[White "Araujo Filho, Luiz Antonio Coel"]
[Black "Tashkov, Rumen"]
[WhiteFideId "2130661"]
[BlackFideId "2904004"]
[WhiteElo "2188"]
[BlackElo "2181"]
[Result "1-0"]
[Round "11"]
[TimeControl "180+1"]
[Date "2022.03.01"]
[WhiteClock "0:00:02"]
[BlackClock "0:00:01"]

1. d4 {[%clk 0:03:00]}  d6 {[%clk 0:02:59]} 2. Nf3 {[%clk 0:03:00]}  g6 {[%clk 0:02:58]} 3. c4 {[%clk 0:03:00]}  Bg7 {[%clk 0:02:59]} 4. Nc3 {[%clk 0:03:01]}  Bg4 {[%clk 0:02:58]} 5. e3 {[%clk 0:03:01]}  Nc6 {[%clk 0:02:57]} 6. Be2 {[%clk 0:03:01]}  e5 {[%clk 0:02:55]} 7. d5 {[%clk 0:03:01]}  Nce7 {[%clk 0:02:54]} 8. e4 {[%clk 0:03:01]}  Bxf3 {[%clk 0:02:52]} 9. Bxf3 {[%clk 0:03:01]}  h5 {[%clk 0:02:52]} 10. O-O {[%clk 0:03:01]}  Bh6 {[%clk 0:02:50]} 11. Bxh6 {[%clk 0:02:56]}  Rxh6 {[%clk 0:02:49]} 12. Qd2 {[%clk 0:02:53]}  Kf8 {[%clk 0:02:47]} 13. b4 {[%clk 0:02:51]}  Kg7 {[%clk 0:02:45]} 14. c5 {[%clk 0:02:51]}  Nf6 {[%clk 0:02:33]} 15. Rac1 {[%clk 0:02:50]}  h4 {[%clk 0:02:17]} 16. cxd6 {[%clk 0:02:48]}  cxd6 {[%clk 0:02:15]} 17. Qe3 {[%clk 0:02:35]}  a6 {[%clk 0:02:03]} 18. Na4 {[%clk 0:02:28]}  Nd7 {[%clk 0:01:59]} 19. Rc2 {[%clk 0:02:25]}  b5 {[%clk 0:01:54]} 20. Nb2 {[%clk 0:02:18]}  Nb6 {[%clk 0:01:48]} 21. Rfc1 {[%clk 0:02:17]}  Rc8 {[%clk 0:01:43]} 22. Rxc8 {[%clk 0:02:17]}  Nexc8 {[%clk 0:01:36]} 23. Rc6 {[%clk 0:02:10]}  f5 {[%clk 0:01:17]} 24. Qc3 {[%clk 0:01:48]}  Kg8 {[%clk 0:01:13]} 25. a4 {[%clk 0:01:05]}  bxa4 {[%clk 0:00:58]} 26. Nxa4 {[%clk 0:01:05]}  Rh7 {[%clk 0:00:55]} 27. Nxb6 {[%clk 0:00:47]}  Nxb6 {[%clk 0:00:54]} 28. Be2 {[%clk 0:00:45]}  Ra7 {[%clk 0:00:51]} 29. exf5 {[%clk 0:00:29]}  gxf5 {[%clk 0:00:51]} 30. Qh3 {[%clk 0:00:29]}  Rf7 {[%clk 0:00:31]} 31. Bxa6 {[%clk 0:00:11]}  e4 {[%clk 0:00:20]} 32. g3 {[%clk 0:00:08]}  Qf6 {[%clk 0:00:16]} 33. Qxh4 {[%clk 0:00:06]}  Qxh4 {[%clk 0:00:14]} 34. gxh4 {[%clk 0:00:07]}  Rg7+ {[%clk 0:00:12]} 35. Kf1 {[%clk 0:00:07]}  Nd7 {[%clk 0:00:11]} 36. Rxd6 {[%clk 0:00:07]}  Ne5 {[%clk 0:00:11]} 37. Re6 {[%clk 0:00:05]}  Nf3 {[%clk 0:00:11]} 38. Ke2 {[%clk 0:00:04]}  Rg1 {[%clk 0:00:10]} 39. Ke3 {[%clk 0:00:05]}  Nxh2 {[%clk 0:00:07]} 40. d6 {[%clk 0:00:04]}  Rd1 {[%clk 0:00:06]} 41. Kf4 {[%clk 0:00:03]}  Nf3 {[%clk 0:00:04]} 42. Kxf5 {[%clk 0:00:03]}  Nd4+ {[%clk 0:00:04]} 43. Ke5 {[%clk 0:00:03]}  Nxe6 {[%clk 0:00:03]} 44. Kxe6 {[%clk 0:00:04]}  Kf8 {[%clk 0:00:03]} 45. d7 {[%clk 0:00:02]}  Rd2 {[%clk 0:00:02]} 46. Bc4 {[%clk 0:00:02]}  Rd1 {[%clk 0:00:01]} 47. Bd5 {[%clk 0:00:02]} 1-0


[Site "https://www.chess.com"]